fUSD/lending_fUSD_20240628
["ID","MTS","AMOUNT","RATE_DAILY","PERIOD"]
[330536231,1719561055844,-519.05,0.00019178,2]
[330536232,1719561055853,-500.0,0.00019178,2]
[330536233,1719561055862,-696.42,0.00019178,2]
[330536234,1719561055874,-1077.61,0.00019178,2]
[330536235,1719561055883,-3444.9,0.00019178,2]
[330536236,1719561055892,-500.0,0.00019178,2]
[330536237,1719561055902,-591.55367972,0.00019178,2]
[330536238,1719561055915,-878.91,0.00019178,2]
[330536239,1719561055924,-1810.22,0.00019178,2]
[330536240,1719561055933,-500.0,0.00019178,2]
[330536241,1719561055943,-5919.42,0.00019178,2]
[330536242,1719561055952,-931.76,0.00019178,2]
[330536243,1719561055965,-500.0,0.00019178,2]
[330536244,1719561055974,-500.0,0.00019178,2]
[330536245,1719561055983,-1072.86,0.00019178,2]
[330536246,1719561055991,-500.0,0.00019178,2]
[330536247,1719561056000,-1058.14,0.00019178,2]
[330536248,1719561056010,-500.0,0.00019178,2]
[330536249,1719561056019,-1191.34,0.00019178,2]
[330536250,1719561056029,-500.0,0.00019178,2]
[330536251,1719561056041,-12606.71,0.00019178,2]
[330536252,1719561056050,-500.0,0.00019178,2]
[330536253,1719561056061,-500.0,0.00019178,2]
[330536254,1719561056071,-3215.98,0.00019178,2]
[330536255,1719561056080,-500.0,0.00019178,2]
[330536256,1719561056090,-1586.1,0.00019178,2]
[330536257,1719561056100,-500.0,0.00019178,2]
[330536258,1719561056110,-687.47,0.00019178,2]
[330536259,1719561056120,-500.0,0.00019178,2]
[330536260,1719561056132,-1219.48,0.00019178,2]
[330536261,1719561056141,-500.0,0.00019178,2]
[330536262,1719561056150,-836.18,0.00019178,2]
[330536263,1719561056159,-625.82,0.00019178,2]
[330536264,1719561056168,-1319.12,0.00019178,2]
[330536265,1719561056177,-1041.16,0.00019178,2]
[330536266,1719561056187,-500.0,0.00019178,2]
[330536267,1719561056196,-1059.97,0.00019178,2]
[330536268,1719561056207,-500.0,0.00019178,2]
[330536269,1719561056216,-1776.67,0.00019178,2]
[330536270,1719561056225,-500.0,0.00019178,2]
[330536271,1719561056235,-500.0,0.00019178,2]
[330536272,1719561056245,-500.0,0.00019178,2]
[330536273,1719561056255,-833.16,0.00019178,2]
[330536274,1719561056264,-667.48,0.00019178,2]
[330536275,1719561056274,-852.24,0.00019178,2]
[330536276,1719561056285,-500.0,0.00019178,2]
[330536277,1719561056296,-832.89,0.00019178,2]
[330536278,1719561056305,-500.0,0.00019178,2]
[330536279,1719561056315,-500.0,0.00019178,2]
[330536280,1719561056325,-500.0,0.00019178,2]
[330536281,1719561056334,-1285.7,0.00019178,2]
[330536282,1719561056343,-500.0,0.00019178,2]
[330536283,1719561056352,-500.0,0.00019178,2]
[330536284,1719561056362,-1976.95,0.00019178,2]
[330536285,1719561056371,-500.0,0.00019178,2]
[330536286,1719561056383,-1115.81,0.00019178,2]
[330536287,1719561056392,-620.27,0.00019178,2]
[330536288,1719561056403,-500.0,0.00019178,2]
[330536289,1719561056413,-1542.91,0.00019178,2]
[330536290,1719561056422,-500.0,0.00019178,2]
[330536291,1719561056432,-1980.39,0.00019178,2]
[330536292,1719561056441,-243.95298574,0.00019178,2]
[330536293,1719561056450,-500.0,0.00019178,2]
[330536294,1719561056461,-1594.11,0.00019178,2]
[330536295,1719561056470,-500.0,0.00019178,2]
[330536296,1719561056479,-500.0,0.00019178,2]
[330536297,1719561056488,-500.0,0.00019178,2]
[330536298,1719561056497,-1240.01,0.00019178,2]
[330536299,1719561056507,-1834.65,0.00019178,2]
[330536300,1719561056516,-1531.63,0.00019178,2]
[330536301,1719561056525,-893.21,0.00019178,2]
[330536302,1719561056534,-532.59,0.00019178,2]
[330536303,1719561056544,-611.04139137,0.00019178,2]
[330536304,1719561056554,-1096.31,0.00019178,2]
[330536305,1719561056563,-1176.17,0.00019178,2]
[330536306,1719561056572,-4339.37,0.00019178,2]
[330536307,1719561056582,-520.52671133,0.00019178,2]
[330536308,1719561056591,-500.0,0.00019178,2]
[330536309,1719561056601,-500.0,0.00019178,2]
[330536310,1719561056611,-500.0,0.00019178,2]
[330536311,1719561056620,-500.0,0.00019178,2]
[330536312,1719561056631,-1639.09,0.00019178,2]
[330536313,1719561056641,-791.78,0.00019178,2]
[330536314,1719561056652,-500.0,0.00019178,2]
[330536315,1719561056661,-500.0,0.00019178,2]
[330536316,1719561056671,-500.0,0.00019178,2]
[330536317,1719561056680,-500.0,0.00019178,2]
[330536318,1719561056690,-1124.86,0.00019178,2]
[330536319,1719561056701,-1291.49,0.00019178,2]
[330536320,1719561056711,-504.91,0.00019178,2]
[330536321,1719561056720,-588.38,0.00019178,2]
[330536322,1719561056728,-500.0,0.00019178,2]
[330536323,1719561056739,-1924.82,0.00019178,2]
[330536324,1719561056748,-500.0,0.00019178,2]
[330536325,1719561056758,-1061.55,0.00019178,2]
[330536326,1719561056767,-500.0,0.00019178,2]
[330536327,1719561056776,-500.0,0.00019178,2]
[330536328,1719561056786,-500.0,0.00019178,2]
[330536329,1719561056795,-1465.35,0.00019178,2]
[330536330,1719561056804,-2089.57,0.00019178,2]
[330536331,1719561056813,-500.0,0.00019178,2]
[330536332,1719561056822,-1614.58316,0.00019178,2]
[330536333,1719561056832,-500.0,0.00019178,2]
[330536334,1719561056845,-734.27,0.00019178,2]
[330536335,1719561056854,-500.0,0.00019178,2]
[330536336,1719561056863,-948.23,0.00019178,2]
[330536337,1719561056875,-500.0,0.00019178,2]
[330536338,1719561056884,-500.0,0.00019178,2]
[330536339,1719561056894,-3576.87,0.00019178,2]
[330536340,1719561056903,-500.0,0.00019178,2]
[330536341,1719561056914,-3935.43,0.00019178,2]
[330536342,1719561056925,-500.0,0.00019178,2]
[330536343,1719561056934,-428.86836719,0.00019178,2]
[330536344,1719561056943,-3780.4,0.00019178,2]
[330536345,1719561056952,-500.0,0.00019178,2]
[330536346,1719561056965,-500.0,0.00019178,2]
[330536347,1719561056974,-500.0,0.00019178,2]
[330536348,1719561056984,-500.0,0.00019178,2]
[330536349,1719561056993,-946.83,0.00019178,2]
[330536350,1719561057003,-770.26,0.00019178,2]
[330536351,1719561057012,-500.0,0.00019178,2]
[330536352,1719561057023,-500.0,0.00019178,2]
[330536353,1719561057035,-631.75,0.00019178,2]
[330536354,1719561057045,-500.0,0.00019178,2]
[330536355,1719561057056,-4503.97,0.00019178,2]
[330536356,1719561057066,-500.0,0.00019178,2]
[330536357,1719561057077,-950.23,0.00019178,2]
[330536358,1719561057085,-500.0,0.00019178,2]
[330536359,1719561057095,-1446.14,0.00019178,2]
[330536360,1719561057104,-500.0,0.00019178,2]
[330536361,1719561057116,-2365.29,0.00019178,2]
[330536362,1719561057125,-1659.75,0.00019178,2]
[330536363,1719561057134,-500.0,0.00019178,2]
[330536364,1719561057144,-500.0,0.00019178,2]
[330536365,1719561057153,-500.0,0.00019178,2]
[330536366,1719561057162,-3311.36,0.00019178,2]
[330536367,1719561057170,-428.29088448,0.00019178,2]
[330536368,1719561057179,-1914.45,0.00019178,2]
[330536369,1719561057188,-1322.58,0.00019178,2]
[330536370,1719561057197,-500.0,0.00019178,2]
[330536371,1719561057207,-500.0,0.00019178,2]
[330536372,1719561057218,-500.0,0.00019178,2]
[330536373,1719561057227,-783.88,0.00019178,2]
[330536374,1719561057236,-500.0,0.00019178,2]
[330536375,1719561057245,-500.0,0.00019178,2]
[330536376,1719561057254,-500.0,0.00019178,2]
[330536377,1719561057263,-612.16,0.00019178,2]
[330536378,1719561057272,-3498.8,0.00019178,2]
[330536379,1719561057282,-500.0,0.00019178,2]
[330536380,1719561057290,-1962.72,0.00019178,2]
[330536381,1719561057299,-500.0,0.00019178,2]
[330536382,1719561057309,-500.0,0.00019178,2]
[330536383,1719561057318,-500.0,0.00019178,2]
[330536384,1719561057327,-1641.9,0.00019178,2]
[330536385,1719561057336,-500.0,0.00019178,2]
[330536386,1719561057346,-500.0,0.00019178,2]
[330536387,1719561057357,-500.0,0.00019178,2]
[330536388,1719561057367,-685.98,0.00019178,2]
[330536389,1719561057376,-637.51,0.00019178,2]
[330536390,1719561057385,-1141.3,0.00019178,2]
[330536391,1719561057395,-3117.56,0.00019178,2]
[330536392,1719561057405,-3602.08,0.00019178,2]
[330536393,1719561057414,-500.0,0.00019178,2]
[330536394,1719561057423,-500.0,0.00019178,2]
[330536395,1719561057432,-3867.01,0.00019178,2]
[330536396,1719561057442,-8127.46,0.00019178,2]
[330536397,1719561057451,-3970.07,0.00019178,2]
[330536398,1719561057463,-4395.4,0.00019178,2]
[330536399,1719561057472,-500.0,0.00019178,2]
[330536400,1719561057481,-500.0,0.00019178,2]
[330536401,1719561057491,-1264.09,0.00019178,2]
[330536402,1719561057626,-2447.28,0.00019178,2]
[330536403,1719561057639,-500.0,0.00019178,2]
[330536404,1719561057650,-596.94947328,0.00019178,2]
[330536405,1719561057660,-500.0,0.00019178,2]
[330536406,1719561057670,-2955.61,0.00019178,2]
[330536407,1719561057679,-764.6,0.00019178,2]
[330536408,1719561057688,-500.0,0.00019178,2]
[330536409,1719561057699,-1319.29,0.00019178,2]
[330536410,1719561057708,-500.0,0.00019178,2]
[330536411,1719561057718,-2004.62,0.00019178,2]
[330536412,1719561057727,-964.57,0.00019178,2]
[330536413,1719561057737,-2128.6,0.00019178,2]
[330536414,1719561057747,-543.13,0.00019178,2]
[330536415,1719561057756,-500.0,0.00019178,2]
[330536416,1719561057766,-5636.27,0.00019178,2]
[330536417,1719561057776,-500.0,0.00019178,2]
[330536418,1719561057785,-4918.69,0.00019178,2]
[330536419,1719561057795,-4066.1,0.00019178,2]
[330536420,1719561057804,-500.0,0.00019178,2]
[330536421,1719561057815,-664.5,0.00019178,2]
[330536422,1719561057825,-4196.26,0.00019178,2]
[330536423,1719561057837,-2426.91,0.00019178,2]
[330536424,1719561057846,-500.0,0.00019178,2]
[330536425,1719561057855,-571.57,0.00019178,2]
[330536426,1719561057865,-500.0,0.00019178,2]
[330536427,1719561057875,-500.0,0.00019178,2]
[330536428,1719561057884,-500.0,0.00019178,2]
[330536429,1719561057894,-1310.02,0.00019178,2]
[330536430,1719561057904,-619.41,0.00019178,2]
[330536431,1719561057914,-1996.62,0.00019178,2]
[330536432,1719561057924,-3529.65,0.00019178,2]
[330536433,1719561057933,-790.68,0.00019178,2]
[330536434,1719561057943,-500.0,0.00019178,2]
[330536435,1719561057952,-1259.18,0.00019178,2]
[330536436,1719561057962,-500.0,0.00019178,2]
[330536437,1719561057971,-803.47,0.00019178,2]
[330536438,1719561057980,-500.0,0.00019178,2]
[330536439,1719561057989,-863.97,0.00019178,2]
[330536440,1719561057999,-3541.7,0.00019178,2]
[330536441,1719561058009,-530.3,0.00019178,2]
[330536442,1719561058018,-676.52,0.00019178,2]
[330536443,1719561058028,-512.92853851,0.00019178,2]
[330536444,1719561058038,-7586.47,0.00019178,2]
[330536445,1719561058048,-500.0,0.00019178,2]
[330536446,1719561058059,-500.0,0.00019178,2]
[330536447,1719561058068,-731.62,0.00019178,2]
[330536448,1719561058079,-1393.57,0.00019178,2]
[330536449,1719561058089,-500.0,0.00019178,2]
[330536450,1719561058098,-1475.96,0.00019178,2]
[330536451,1719561058107,-500.0,0.00019178,2]
[330536452,1719561058117,-955.45,0.00019178,2]
[330536453,1719561058126,-1270.09,0.00019178,2]
[330536454,1719561058135,-500.0,0.00019178,2]
[330536455,1719561058144,-1229.77,0.00019178,2]
[330536456,1719561058155,-500.0,0.00019178,2]
[330536457,1719561058164,-2329.0,0.00019178,2]
[330536458,1719561058174,-5063.06,0.00019178,2]
[330536459,1719561058183,-773.16,0.00019178,2]
[330536460,1719561058192,-500.0,0.00019178,2]
[330536461,1719561058202,-986.15,0.00019178,2]
[330536462,1719561058211,-500.0,0.00019178,2]
[330536463,1719561058221,-1485.78,0.00019178,2]
[330536464,1719561058231,-500.0,0.00019178,2]
[330536465,1719561058241,-1707.42,0.00019178,2]
[330536466,1719561058251,-2012.41,0.00019178,2]
[330536467,1719561058261,-500.0,0.00019178,2]
[330536468,1719561058270,-768.85,0.00019178,2]
[330536469,1719561058279,-921.17,0.00019178,2]
[330536470,1719561058289,-500.0,0.00019178,2]
[330536471,1719561058298,-2900.72,0.00019178,2]
[330536472,1719561058308,-2449.33,0.00019178,2]
[330536473,1719561058318,-2037.45,0.00019178,2]
[330536474,1719561058329,-9301.47,0.00019178,2]
[330536475,1719561058339,-500.0,0.00019178,2]
[330536476,1719561058348,-500.0,0.00019178,2]
[330536477,1719561058359,-1779.04,0.00019178,2]
[330536478,1719561058369,-500.0,0.00019178,2]
[330536479,1719561058379,-1017.79,0.00019178,2]
[330536480,1719561058389,-500.0,0.00019178,2]
[330536481,1719561058399,-526.59,0.00019178,2]
[330536482,1719561058408,-500.0,0.00019178,2]
[330536483,1719561058417,-500.0,0.00019178,2]
[330536484,1719561058427,-500.0,0.00019178,2]
[330536485,1719561058437,-500.0,0.00019178,2]
[330536486,1719561058446,-500.0,0.00019178,2]
[330536487,1719561058456,-500.0,0.00019178,2]
[330536488,1719561058466,-500.0,0.00019178,2]
[330536489,1719561058475,-663.42,0.00019178,2]
[330536490,1719561058484,-500.0,0.00019178,2]
[330536491,1719561058493,-500.0,0.00019178,2]
[330536492,1719561058503,-674.65,0.00019178,2]
[330536493,1719561058513,-500.0,0.00019178,2]
[330536494,1719561058523,-500.0,0.00019178,2]
[330536495,1719561058532,-500.0,0.00019178,2]
[330536496,1719561058541,-500.0,0.00019178,2]
[330536497,1719561058551,-1420.13,0.00019178,2]
[330536498,1719561058560,-500.0,0.00019178,2]
[330536499,1719561058569,-2537.99,0.00019178,2]
[330536500,1719561058579,-3320.06,0.00019178,2]
[330536501,1719561058588,-1037.85,0.00019178,2]
[330536502,1719561058598,-500.0,0.00019178,2]
[330536503,1719561058607,-3319.78,0.00019178,2]
[330536504,1719561058617,-500.0,0.00019178,2]
[330536505,1719561058627,-634.63,0.00019178,2]
[330536506,1719561058637,-500.0,0.00019178,2]
[330536507,1719561058646,-56773.66,0.00019178,2]
[330536508,1719561058656,-555.58,0.00019178,2]
[330536509,1719561058665,-500.0,0.00019178,2]
[330536510,1719561058674,-500.0,0.00019178,2]
[330536511,1719561058684,-1092.89,0.00019178,2]
[330536512,1719561058693,-500.0,0.00019178,2]
[330536513,1719561058703,-912.19,0.00019178,2]
[330536514,1719561058713,-625.07,0.00019178,2]
[330536515,1719561058722,-510.63,0.00019178,2]
[330536516,1719561058732,-2200.88,0.00019178,2]
[330536517,1719561058744,-941.38,0.00019178,2]
[330536518,1719561058753,-2030.64,0.00019178,2]
[330536519,1719561058762,-680.1,0.00019178,2]
[330536520,1719561058771,-500.0,0.00019178,2]
[330536521,1719561058780,-670.5,0.00019178,2]
[330536522,1719561058789,-3883.66,0.00019178,2]
[330536523,1719561058798,-500.0,0.00019178,2]
[330536524,1719561058808,-500.0,0.00019178,2]
[330536525,1719561058817,-1305.67,0.00019178,2]
[330536526,1719561058828,-278.1476437,0.00019178,2]
[330536527,1719561058841,-916.14,0.00019178,2]
[330536528,1719561058850,-608.88,0.00019178,2]
[330536529,1719561058860,-2094.61,0.00019178,2]
[330536530,1719561058869,-624.72,0.00019178,2]
[330536531,1719561058880,-500.0,0.00019178,2]
[330536532,1719561058889,-500.0,0.00019178,2]
[330536533,1719561058899,-2077.02,0.00019178,2]
[330536534,1719561058908,-500.0,0.00019178,2]
[330536535,1719561058920,-500.0,0.00019178,2]
[330536536,1719561058930,-500.0,0.00019178,2]
[330536537,1719561058940,-575.25,0.00019178,2]
[330536538,1719561058949,-500.0,0.00019178,2]
[330536539,1719561058960,-1750.92,0.00019178,2]
[330536540,1719561058968,-500.0,0.00019178,2]
[330536541,1719561058978,-500.0,0.00019178,2]
[330536542,1719561058987,-586.86,0.00019178,2]
[330536543,1719561058996,-1644.79,0.00019178,2]
[330536544,1719561059006,-2240.25,0.00019178,2]
[330536545,1719561059015,-500.0,0.00019178,2]
[330536546,1719561059024,-785.73,0.00019178,2]
[330536547,1719561059033,-545.94681238,0.00019178,2]
[330536548,1719561059043,-1783.03,0.00019178,2]
[330536549,1719561059052,-3442.26,0.00019178,2]
[330536550,1719561059062,-3820.4,0.00019178,2]
[330536551,1719561059071,-2119.76,0.00019178,2]
[330536552,1719561059081,-3279.62,0.00019178,2]
[330536553,1719561059090,-500.0,0.00019178,2]
[330536554,1719561059100,-1177.19,0.00019178,2]
[330536555,1719561059110,-500.0,0.00019178,2]
[330536556,1719561059120,-2812.36,0.00019178,2]
[330536557,1719561059129,-500.0,0.00019178,2]
[330536558,1719561059139,-500.0,0.00019178,2]
[330536559,1719561059149,-500.0,0.00019178,2]
[330536560,1719561059160,-500.0,0.00019178,2]
[330536561,1719561059170,-5691.14,0.00019178,2]
[330536562,1719561059179,-500.0,0.00019178,2]
[330536563,1719561059188,-1875.87,0.00019178,2]
[330536564,1719561059198,-751.3,0.00019178,2]
[330536565,1719561059208,-500.0,0.00019178,2]
[330536566,1719561059218,-2181.6,0.00019178,2]
[330536567,1719561059228,-587.07834311,0.00019178,2]
[330536568,1719561059238,-500.0,0.00019178,2]
[330536569,1719561059247,-4551.03,0.00019178,2]
[330536570,1719561059256,-1185.76,0.00019178,2]
[330536571,1719561059265,-500.0,0.00019178,2]
[330536572,1719561059274,-500.0,0.00019178,2]
[330536573,1719561059284,-500.0,0.00019178,2]
[330536574,1719561059293,-500.0,0.00019178,2]
[330536575,1719561059303,-500.0,0.00019178,2]
[330536576,1719561059312,-3480.66,0.00019178,2]
[330536577,1719561059322,-500.0,0.00019178,2]
[330536578,1719561059331,-918.65,0.00019178,2]
[330536579,1719561059340,-500.0,0.00019178,2]
[330536580,1719561059350,-2776.49,0.00019178,2]
[330536581,1719561059359,-710.75,0.00019178,2]
[330536582,1719561059368,-1117.03,0.00019178,2]
[330536583,1719561059378,-5538.45,0.00019178,2]
[330536584,1719561059387,-500.0,0.00019178,2]
[330536585,1719561059397,-500.0,0.00019178,2]
[330536586,1719561059406,-5613.75,0.00019178,2]
[330536587,1719561059417,-1555.15,0.00019178,2]
[330536588,1719561059426,-3058.96,0.00019178,2]
[330536589,1719561059436,-500.0,0.00019178,2]
[330536590,1719561059445,-500.0,0.00019178,2]
[330536591,1719561059455,-820.14,0.00019178,2]
[330536592,1719561059466,-500.0,0.00019178,2]
[330536593,1719561059475,-500.0,0.00019178,2]
[330536594,1719561059484,-825.28,0.00019178,2]
[330536595,1719561059493,-4616.67,0.00019178,2]
[330536596,1719561059503,-515.83,0.00019178,2]
[330536597,1719561059512,-500.0,0.00019178,2]
[330536598,1719561059522,-841.57,0.00019178,2]
[330536599,1719561059531,-500.0,0.00019178,2]
[330536600,1719561059540,-500.0,0.00019178,2]
[330536601,1719561059550,-500.0,0.00019178,2]
[330536602,1719561059560,-592.24,0.00019178,2]
[330536603,1719561059570,-500.0,0.00019178,2]
[330536604,1719561059579,-10383.18,0.00019178,2]
[330536605,1719561059589,-500.0,0.00019178,2]
[330536606,1719561059598,-1039.73,0.00019178,2]
[330536607,1719561059608,-1439.93,0.00019178,2]
[330536608,1719561059618,-887.72,0.00019178,2]
[330536609,1719561059628,-6117.5,0.00019178,2]
[330536610,1719561059637,-1863.96,0.00019178,2]
[330536611,1719561059647,-3531.61,0.00019178,2]
[330536612,1719561059657,-1143.1,0.00019178,2]
[330536613,1719561059667,-500.0,0.00019178,2]
[330536614,1719561059676,-500.0,0.00019178,2]
[330536615,1719561059686,-1362.09,0.00019178,2]
[330536616,1719561059695,-500.0,0.00019178,2]
[330536617,1719561059704,-23179.74,0.00019178,2]
[330536618,1719561059715,-500.0,0.00019178,2]
[330536619,1719561060169,-3216.0,0.00019178,2]
[330536620,1719561060182,-500.0,0.00019178,2]
[330536621,1719561060196,-500.0,0.00019178,2]
[330536622,1719561060206,-16559.11,0.00019178,2]
[330536623,1719561060219,-500.0,0.00019178,2]
[330536624,1719561060229,-383.45011862,0.00019178,2]
[330536625,1719561060239,-500.0,0.00019178,2]
[330536626,1719561060248,-1155.64,0.00019178,2]
[330536627,1719561060258,-3529.87,0.00019178,2]
[330536628,1719561060268,-850.77,0.00019178,2]
[330536629,1719561060278,-3804.04,0.00019178,2]
[330536630,1719561060288,-500.0,0.00019178,2]
[330536631,1719561060298,-500.0,0.00019178,2]
[330536632,1719561060308,-1207.75,0.00019178,2]
[330536633,1719561060319,-500.0,0.00019178,2]
[330536634,1719561060329,-736.84,0.00019178,2]
[330536635,1719561060339,-932.07,0.00019178,2]
[330536636,1719561060350,-1059.78,0.00019178,2]
[330536637,1719561060359,-2084.87,0.00019178,2]
[330536638,1719561060370,-500.0,0.00019178,2]
[330536639,1719561060380,-2749.65,0.00019178,2]
[330536640,1719561060389,-12501.51,0.00019178,2]
[330536641,1719561060399,-500.0,0.00019178,2]
[330536642,1719561060409,-547.83,0.00019178,2]
[330536643,1719561060419,-1431.47,0.00019178,2]
[330536644,1719561060429,-500.0,0.00019178,2]
[330536645,1719561060439,-9353.15,0.00019178,2]
[330536646,1719561060449,-607.13,0.00019178,2]
[330536647,1719561060459,-500.0,0.00019178,2]
[330536648,1719561060470,-2419.31,0.00019178,2]
[330536649,1719561060480,-500.0,0.00019178,2]
[330536650,1719561060491,-694.49,0.00019178,2]
[330536651,1719561060500,-500.0,0.00019178,2]
[330536652,1719561060511,-1192.09,0.00019178,2]
[330536653,1719561060520,-500.0,0.00019178,2]
[330536654,1719561060530,-8136.93,0.00019178,2]
[330536655,1719561060540,-14843.86,0.00019178,2]
[330536656,1719561060550,-500.0,0.00019178,2]
[330536657,1719561060560,-500.0,0.00019178,2]
[330536658,1719561060570,-1830.13,0.00019178,2]
[330536659,1719561060580,-383.3461068,0.00019178,2]
[330536660,1719561060590,-500.0,0.00019178,2]
[330536661,1719561060600,-917.05,0.00019178,2]
[330536662,1719561060610,-500.0,0.00019178,2]
[330536663,1719561060619,-500.0,0.00019178,2]
[330536664,1719561060628,-9718.8,0.00019178,2]
[330536665,1719561060638,-524.36,0.00019178,2]
[330536666,1719561060648,-1404.66,0.00019178,2]
[330536667,1719561060658,-500.0,0.00019178,2]
[330536668,1719561060667,-500.0,0.00019178,2]
[330536669,1719561060677,-687.75,0.00019178,2]
[330536670,1719561060690,-500.0,0.00019178,2]
[330536671,1719561060700,-590.48,0.00019178,2]
[330536672,1719561060710,-500.0,0.00019178,2]
[330536673,1719561060720,-2153.44,0.00019178,2]
[330536674,1719561060730,-1961.45,0.00019178,2]
[330536675,1719561060741,-500.0,0.00019178,2]
[330536676,1719561060751,-2726.91,0.00019178,2]
[330536677,1719561060761,-500.0,0.00019178,2]
[330536678,1719561060771,-30319.25,0.00019178,2]
[330536679,1719561060782,-500.0,0.00019178,2]
[330536680,1719561060791,-977.64,0.00019178,2]
[330536681,1719561060802,-500.0,0.00019178,2]
[330536682,1719561060812,-510.83,0.00019178,2]
[330536683,1719561060823,-1308.73,0.00019178,2]
[330536684,1719561060836,-627.05,0.00019178,2]
[330536685,1719561060846,-500.0,0.00019178,2]
[330536686,1719561060856,-1727.28,0.00019178,2]
[330536687,1719561060866,-4237.77,0.00019178,2]
[330536688,1719561060876,-500.0,0.00019178,2]
[330536689,1719561060887,-500.0,0.00019178,2]
[330536690,1719561060898,-500.0,0.00019178,2]
[330536691,1719561060910,-500.0,0.00019178,2]
[330536692,1719561060922,-971.07,0.00019178,2]
[330536693,1719561060931,-1351.8,0.00019178,2]
[330536694,1719561060941,-500.0,0.00019178,2]
[330536695,1719561060952,-500.0,0.00019178,2]
[330536696,1719561060962,-2837.45,0.00019178,2]
[330536697,1719561060972,-4285.86,0.00019178,2]
[330536698,1719561060982,-2608.81,0.00019178,2]
[330536699,1719561060992,-500.0,0.00019178,2]
[330536700,1719561061003,-500.0,0.00019178,2]
[330536701,1719561061013,-5870.19,0.00019178,2]
[330536702,1719561061024,-500.0,0.00019178,2]
[330536703,1719561061035,-8252.27,0.00019178,2]
[330536704,1719561061046,-12890.69,0.00019178,2]
[330536705,1719561061056,-6336.99,0.00019178,2]
[330536706,1719561061066,-500.0,0.00019178,2]
[330536707,1719561061076,-500.0,0.00019178,2]
[330536708,1719561061086,-1262.6,0.00019178,2]
[330536709,1719561061097,-500.0,0.00019178,2]
[330536710,1719561061107,-500.0,0.00019178,2]
[330536711,1719561061118,-1433.34,0.00019178,2]
[330536712,1719561061128,-500.0,0.00019178,2]
[330536713,1719561061137,-500.0,0.00019178,2]
[330536714,1719561061147,-500.0,0.00019178,2]
[330536715,1719561061157,-500.0,0.00019178,2]
[330536716,1719561061167,-500.0,0.00019178,2]
[330536717,1719561061177,-500.0,0.00019178,2]
[330536718,1719561061187,-500.0,0.00019178,2]
[330536719,1719561061197,-500.0,0.00019178,2]
[330536720,1719561061208,-500.0,0.00019178,2]
[330536721,1719561061219,-500.0,0.00019178,2]
[330536722,1719561061229,-637.1010057,0.00019178,2]
[330536723,1719561061242,-500.0,0.00019178,2]
[330536724,1719561061252,-2531.85,0.00019178,2]
[330536725,1719561061261,-500.0,0.00019178,2]
[330536726,1719561061271,-2352.32,0.00019178,2]
[330536727,1719561061281,-8509.27,0.00019178,2]
[330536728,1719561061291,-500.0,0.00019178,2]
[330536729,1719561061301,-5449.9,0.00019178,2]
[330536730,1719561061311,-545.53,0.00019178,2]